fUSD/lending_fUSD_20251029
["ID","MTS","AMOUNT","RATE_DAILY","PERIOD"]
[392596503,1761717055511,-500.0,0.00027397,2]
[392596504,1761717055520,-2896.5,0.00027397,2]
[392596505,1761717055536,-500.0,0.00027397,2]
[392596506,1761717055545,-500.0,0.00027397,2]
[392596507,1761717055554,-1943.15,0.00027397,2]
[392596508,1761717055563,-639.79653175,0.00027397,2]
[392596509,1761717055572,-529.62642221,0.00027397,2]
[392596510,1761717055581,-500.0,0.00027397,2]
[392596511,1761717055591,-500.0,0.00027397,2]
[392596512,1761717055600,-638.47,0.00027397,2]
[392596513,1761717055608,-500.0,0.00027397,2]
[392596514,1761717055618,-500.0,0.00027397,2]
[392596515,1761717055627,-500.0,0.00027397,2]
[392596516,1761717055636,-277.38504283,0.00027397,2]
[392596517,1761717056137,-4.98781058,0.00027397,2]
[392596519,1761717548044,150.71,0.00013071,2]
[392596520,1761717548270,150.71,0.00013759,2]
[392596521,1761717548502,150.71,0.00014447,2]
[392596522,1761717643173,2000.0,0.000195,3]
[392596523,1761717750981,-150.71,0.00015135,2]
[392596524,1761717751018,-503.42036971,0.00015323,2]
[392596525,1761717751053,-150.71,0.00015823,2]
[392596526,1761717751089,-150.71,0.00016511,2]
[392596527,1761717751125,-150.71,0.00017199,2]
[392596528,1761717751164,-150.71,0.00017887,2]
[392596529,1761717751201,-150.71,0.00018575,2]
[392596530,1761717751238,-150.71,0.00019263,2]
[392596531,1761717751274,-150.71,0.00019951,2]
[392596532,1761717751309,-150.71,0.00020639,2]
[392596533,1761717751346,-150.71,0.00021327,2]
[392596534,1761717751382,-150.71,0.00022015,2]
[392596535,1761717751417,-150.71,0.00022703,2]
[392596536,1761717751454,-150.71,0.00023391,2]
[392596537,1761717751488,-150.71,0.00024079,2]
[392596538,1761717751524,-150.71,0.00024767,2]
[392596539,1761717751559,-150.0,0.00025288,2]
[392596540,1761717751594,-150.71,0.00025455,2]
[392596541,1761717751627,-477.01541854,0.00025461,2]
[392596542,1761717751648,-150.71,0.00025479,2]
[392596543,1761717751659,-503.42036971,0.00025479,2]
[392596544,1761717751670,-150.71,0.00025479,2]
[392596545,1761717751681,-150.71,0.00025479,2]
[392596546,1761717751692,-150.71,0.00025479,2]
[392596547,1761717751707,-93.73963029,0.00025479,2]
[392596548,1761717751717,-56.97036971,0.00025479,2]
[392596549,1761717751729,-150.71,0.00025479,2]
[392596550,1761717751744,-150.71,0.00025479,2]
[392596551,1761717751759,-141.60963029,0.00025479,2]
[392596552,1761717751769,-9.10036971,0.00025753,2]
[392596553,1761717751780,-150.71,0.00025753,2]
[392596554,1761717751791,-150.71,0.00025753,2]
[392596555,1761717751811,-150.71,0.00025753,2]
[392596556,1761717751825,-38.76963029,0.00025753,2]
[392596557,1761717751835,-111.94036971,0.00026143,2]
[392596558,1761717751850,-38.76963029,0.00026143,2]
[392596559,1761717751859,-111.94036971,0.00026574,2]
[392596560,1761717751875,-150.71,0.00026574,2]
[392596561,1761717751886,-150.71,0.00026574,2]
[392596562,1761717751906,-150.0,0.00026574,2]
[392596563,1761717751921,-150.71,0.00026574,2]
[392596564,1761717751967,-477.01541854,0.00026574,2]
[392596565,1761717751982,-8.91421175,0.00026574,2]
[392596566,1761717751992,-907.49421175,0.00026575,2]
[392596578,1761718232367,-150.0,0.00024288,2]
[392596579,1761718232377,-1000.0,0.00025753,2]
[392596580,1761718232386,-500.0,0.00025753,2]
[392596581,1761718232396,-500.0,0.00025753,2]
[392596582,1761718232407,-200.0,0.00026059,2]
[392596583,1761718232417,-1200.0,0.00026129,2]
[392596584,1761718232426,-2000.0,0.0002613,2]
[392596585,1761718232436,-500.0,0.00026736,7]
[392596586,1761718232445,-439.498,0.00026813,14]
[392596587,1761718232454,-500.0,0.00026832,7]
[392596588,1761718232464,-1000.0,0.00026849,2]
[392596589,1761718232473,-500.0,0.00026849,2]
[392596590,1761718232483,-286.20067356,0.0002689,2]
[392596591,1761718232492,-677.22309731,0.0002689,2]
[392596592,1761718232501,-5000.0,0.000269,2]
[392596593,1761718232511,-502.33774526,0.000269,6]
[392596594,1761718232520,-156.742236,0.000269,2]
[392596595,1761718232530,-218.00337111,0.00026915,2]
[392596596,1761718232539,-500.0,0.00026931,7]
[392596597,1761718232550,-165.78463667,0.00026979,2]
[392596598,1761718232560,-44015.9564379,0.0002698,2]
[392596599,1761718232569,-500.0,0.00026989,2]
[392596600,1761718232578,-500.0,0.00026989,2]
[392596601,1761718232587,-500.0,0.00026989,2]
[392596602,1761718232596,-252.91778841,0.00026989,2]
[392596603,1761718232606,-205.23020632,0.0002699,2]
[392596604,1761718232615,-172.11,0.0002699,2]
[392596605,1761718232624,-172.11,0.0002699,2]
[392596606,1761718232633,-172.11,0.0002699,2]
[392596607,1761718232643,-172.11,0.0002699,2]
[392596608,1761718232652,-172.11,0.0002699,2]
[392596609,1761718232661,-172.11,0.0002699,2]
[392596610,1761718232671,-172.11,0.0002699,2]
[392596611,1761718232680,-172.11,0.0002699,2]
[392596612,1761718232690,-172.11,0.0002699,2]
[392596613,1761718232699,-172.11,0.0002699,2]
[392596614,1761718232709,-172.11,0.0002699,2]
[392596615,1761718232719,-172.11,0.0002699,2]
[392596616,1761718232729,-172.11,0.0002699,2]
[392596617,1761718232739,-172.11,0.0002699,2]
[392596618,1761718232754,-172.11,0.0002699,2]
[392596619,1761718232764,-172.11,0.0002699,2]
[392596620,1761718232773,-172.11,0.0002699,2]
[392596621,1761718232782,-172.11,0.0002699,2]
[392596622,1761718232792,-172.11,0.0002699,2]
[392596623,1761718232801,-172.11,0.0002699,2]
[392596624,1761718232811,-172.11,0.0002699,2]
[392596625,1761718232820,-172.11,0.0002699,2]
[392596626,1761718232829,-172.11,0.0002699,2]
[392596627,1761718232838,-172.11,0.0002699,2]
[392596628,1761718232848,-172.11,0.0002699,2]
[392596629,1761718232857,-172.11,0.0002699,2]
[392596630,1761718232868,-172.11,0.0002699,2]
[392596631,1761718232877,-172.11,0.0002699,2]
[392596632,1761718232886,-172.11,0.0002699,2]
[392596633,1761718232895,-172.11,0.0002699,2]
[392596634,1761718232905,-172.11,0.0002699,2]
[392596635,1761718232914,-172.11,0.0002699,2]
[392596636,1761718232924,-172.11,0.0002699,2]
[392596637,1761718232933,-172.11,0.0002699,2]
[392596638,1761718232942,-172.11,0.0002699,2]
[392596639,1761718232952,-172.11,0.0002699,2]
[392596640,1761718232962,-172.11,0.0002699,2]
[392596641,1761718232971,-37332.75626828,0.0002699,2]
[392596642,1761718232980,-286.20067349,0.00026996,2]
[392596643,1761718232990,-677.22309722,0.00026996,2]
[392596644,1761718232999,-500.0,0.00026999,2]
[392596645,1761718233008,-500.0,0.00026999,2]
[392596646,1761718233017,-500.0,0.00026999,2]
[392596647,1761718233027,-556.97992866,0.00026999,2]
[392596648,1761718233036,-500.0,0.00026999,2]
[392596649,1761718233045,-500.0,0.00026999,2]
[392596650,1761718233056,-500.0,0.00026999,2]
[392596651,1761718233065,-500.0,0.00026999,2]
[392596652,1761718233074,-500.0,0.00026999,2]
[392596653,1761718233084,-500.0,0.00026999,2]
[392596654,1761718233094,-500.0,0.00026999,2]
[392596655,1761718233104,-500.0,0.00026999,2]
[392596656,1761718233113,-500.0,0.00026999,2]
[392596657,1761718233123,-500.0,0.00026999,2]
[392596658,1761718233133,-500.0,0.00026999,2]
[392596659,1761718233142,-500.0,0.00026999,2]
[392596660,1761718233151,-624.0,0.00027,2]
[392596661,1761718233162,-7945.11949913,0.00027,2]
[392596687,1761718246628,-222.60660286,0.00025734,2]
[392596688,1761718246638,-3827.88004503,0.000269,2]
[392596689,1761718246672,-316.88036164,0.000269,2]
[392597156,1761718344763,926.06028763,0.000315,120]
[392597157,1761718399245,500.0,0.00031505,120]
[392597158,1761718493996,301.43,0.00031507,120]
[392597159,1761718513215,228.58,0.00013699,2]
[392597165,1761719273425,5527.54415255,0.00015,2]
[392597166,1761719273449,6214.63210419,0.00015,2]
[392597167,1761719273471,6214.63210419,0.00015,2]
[392597168,1761719273493,6214.63210419,0.00015,2]
[392597169,1761719273515,6214.63210419,0.00015,2]
[392597170,1761719273538,6214.63210419,0.00015,2]
[392597171,1761719290204,255.51611901,0.000135,2]
[392597172,1761719292605,-515.79814958,0.0001439,2]
[392597173,1761719301196,-399.08,0.0001439,2]
[392597175,1761719303423,-299.50036308,0.0001439,2]
[392597176,1761719305261,-353.9219872,0.0001439,2]
[392597177,1761719308731,-180.8195341,0.0001439,2]
[392597178,1761719310909,-261.55530568,0.0001439,2]
[392597181,1761719312515,-346.03589621,0.0001439,2]
[392597182,1761719316498,-397.34727765,0.0001439,2]
[392597186,1761719318760,-252.65272235,0.0001439,2]
[392597187,1761719320807,-439.71109867,0.0001439,2]
[392597188,1761719324392,-212.9588813,0.0001439,2]
[392597189,1761719327273,-446.04562913,0.0001439,2]
[392597190,1761719330161,-160.0,0.0001439,2]
[392597191,1761719346707,-408.0,0.0001439,2]
[392597229,1761719431582,-657.6195849,0.0001439,2]
[392597230,1761719431592,-166.9138389,0.000149,2]
[392597231,1761719431602,-203.03205227,0.00014998,2]
[392597232,1761719431760,-996.96794773,0.00014998,2]
[392597233,1761719431769,-300.0,0.00014998,2]
[392597234,1761719431778,-269.6957137,0.00014999,2]
[392597235,1761719431788,-180.8195341,0.00014999,2]
[392597236,1761719431797,-500.0,0.00014999,2]
[392597237,1761719431806,-621.13999767,0.00014999,2]
[392597238,1761719431815,-500.0,0.00014999,2]
[392597240,1761719431824,-500.0,0.00014999,2]
[392597242,1761719431833,-361.36833145,0.00014999,2]
[392597244,1761719431842,-150.0,0.00014999,2]
[392597246,1761719431852,-31678.92605176,0.00015,2]
[392597256,1761719439703,-11321.0,0.00015,2]
[392597257,1761719439925,-375.547,0.00015,2]
[392597274,1761719445718,-234845.96319398,0.00015,2]
[392597289,1761719468341,646.33564641,0.000135,2]
[392597292,1761720145974,-228.96053881,0.000149,2]
[392597295,1761720215799,84.70889953,0.00012091,2]
[392597296,1761720215826,102.42110047,0.00012091,2]
[392597297,1761720216001,187.13,0.00012727,2]
[392597298,1761720216455,187.13,0.00013363,2]
[392597313,1761720603725,-187.13,0.00014,2]
[392597314,1761720603750,-187.13,0.00014636,2]
[392597315,1761720603773,-206.06448492,0.000149,2]
[392597316,1761720603796,-151.0,0.00014991,2]
[392597317,1761720603819,-151.0,0.00014991,2]
[392597318,1761720603842,-151.0,0.00014991,2]
[392597319,1761720603864,-512.26622482,0.00014999,2]
[392597320,1761720603886,-500.0,0.00014999,2]
[392597321,1761720603908,-500.0,0.00014999,2]
[392597322,1761720603931,-1200.0,0.00014999,2]
[392597323,1761720603953,-46254.40929026,0.00015,2]
[392597327,1761720631826,-1133.93352267,0.00015,2]
[392597328,1761720631838,-1164.6702764,0.00015,2]
[392597329,1761720631851,-391.23086674,0.00015,2]
[392597330,1761720631862,-902.65587421,0.00015,2]
[392597331,1761720631873,-1100.7542825,0.00015,2]
[392597332,1761720631935,-981.40148245,0.00015,2]
[392597333,1761720632039,-185588.4465045,0.00015,2]
[392597334,1761720632049,-176.27605,0.00015,2]
[392597335,1761720632059,-157.6794,0.00015,2]
[392597336,1761720632068,-312.9452115,0.00015,2]
[392597337,1761720632077,-444.83673754,0.00015,2]
[392597338,1761720632086,-510.44622381,0.00015,2]
[392597339,1761720632095,-200.0,0.00015,2]
[392597340,1761720632104,-187.13,0.00015272,2]
[392597341,1761720632113,-187.13,0.00015909,2]
[392597342,1761720632122,-206.06448491,0.00016338,2]
[392597343,1761720632132,-1623.0,0.00016499,2]
[392597344,1761720632142,-187.13,0.00016545,2]
[392597345,1761720632151,-187.13,0.00017182,2]
[392597347,1761720632161,-206.06448491,0.00017777,2]
[392597349,1761720632171,-187.13,0.00017818,2]
[392597351,1761720632180,-241.05062568,0.00018,2]
[392597353,1761720632190,-586.77342987,0.00018,2]
[392597354,1761720632199,-187.13,0.00018454,2]
[392597355,1761720632208,-398.30899396,0.00019,2]
[392597356,1761720632218,-187.13,0.00019091,2]
[392597357,1761720632232,-500.0,0.00019178,2]
[392597358,1761720632241,-206.06448491,0.00019215,2]
[392597359,1761720632251,-187.13,0.00019727,2]
[392597360,1761720632261,-524.23064776,0.00020187,2]
[392597361,1761720632270,-228.58,0.00020187,2]
[392597362,1761720632280,-187.13,0.00020363,2]
[392597363,1761720632289,-206.06448491,0.00020653,2]
[392597364,1761720632298,-187.13,0.00021,2]
[392597365,1761720632308,-3953.327,0.00021353,2]
[392597366,1761720632317,-187.13,0.00021636,2]
[392597367,1761720632327,-1092.0,0.000218,2]
[392597368,1761720632336,-632.0,0.000219,5]
[392597369,1761720632346,-206.06448491,0.00022092,2]
[392597370,1761720632355,-187.13,0.00022272,2]
[392597371,1761720632364,-1332.8339459,0.000229,2]
[392597372,1761720632373,-187.13,0.00022909,2]
[392597373,1761720632383,-250.0,0.00022911,2]
[392597374,1761720632392,-1433.32585708,0.000231,2]
[392597375,1761720632401,-13549.56074543,0.000232,2]
[392597377,1761720632410,-152.0,0.00023378,3]
[392597379,1761720632419,-206.06448491,0.0002353,2]
[392597380,1761720632429,-187.13,0.00023545,2]
[392597381,1761720632438,-691.44,0.00023986,3]
[392597382,1761720632447,-3670.0,0.00024,2]
[392597383,1761720632456,-162.52,0.00024019,2]
[392597384,1761720632465,-187.13,0.00024181,2]
[392597385,1761720632477,-152.0,0.00024363,4]
[392597386,1761720632486,-476.4830027,0.00024556,2]
[392597387,1761720632495,-5005.42,0.00024572,2]
[392597388,1761720632504,-162.28,0.00024658,2]
[392597389,1761720632514,-1000.0,0.000248,30]
[392597390,1761720632522,-233.99,0.00024887,2]
[392597391,1761720632531,-206.06448491,0.00024968,2]
[392597392,1761720632540,-278.04,0.00025212,2]
[392597393,1761720632549,-150.0,0.00025212,2]
[392597394,1761720632558,-166.66,0.00025309,2]
[392597395,1761720632567,-152.0,0.00025349,5]
[392597396,1761720632576,-500.0,0.00025753,2]
[392597397,1761720632585,-500.0,0.00025753,2]
[392597398,1761720632594,-1100.0,0.00025753,2]
[392597399,1761720632603,-412.91159438,0.000258,2]
[392597400,1761720632612,-187.24,0.00025908,2]
[392597401,1761720632621,-2995.5090045,0.00026091,2]
[392597402,1761720632631,-1000.0,0.00026144,2]
[392597403,1761720632640,-166.66,0.00026144,2]
[392597404,1761720632650,-152.0,0.00026334,6]
[392597405,1761720632659,-206.06448491,0.00026407,2]
[392597406,1761720632669,-168.0,0.00026535,2]
[392597407,1761720632678,-168.0,0.00026538,2]
[392597408,1761720632688,-168.0,0.00026577,2]
[392597409,1761720632697,-528.79777164,0.00026629,7]
[392597410,1761720632706,-154.79408405,0.0002663,2]
[392597411,1761720632715,-228.58,0.00026676,2]
[392597412,1761720632727,-168.0,0.00026714,2]
[392597413,1761720632736,-500.0,0.00026753,7]
[392597414,1761720632745,-168.0,0.00026754,2]
[392597415,1761720632754,-166.9138389,0.0002679,2]
[392597416,1761720632763,-500.0,0.00026799,7]
[392597417,1761720632772,-168.0,0.00026802,2]
[392597418,1761720632781,-168.0,0.00026818,2]
[392597419,1761720632791,-500.0,0.00026849,2]
[392597420,1761720632800,-1100.0,0.00026849,2]
[392597421,1761720632809,-5017.0,0.00026849,7]
[392597422,1761720632819,-541.77847783,0.0002689,2]
[392597423,1761720632828,-5000.0,0.0002689,2]
[392597424,1761720632839,-156.742236,0.000269,2]
[392597425,1761720632848,-154.79408405,0.00026904,2]
[392597426,1761720632857,-351.598,0.00026931,15]
[392597427,1761720632867,-657.0,0.00026955,2]
[392597428,1761720632876,-180.0,0.00026959,2]
[392597429,1761720632885,-541.77847777,0.00026966,2]
[392597430,1761720632894,-500.0,0.00026973,2]
[392597431,1761720632904,-500.0,0.00026973,2]
[392597432,1761720632913,-500.0,0.00026973,2]
[392597433,1761720632922,-500.0,0.00026973,2]
[392597434,1761720632936,-200.0,0.00026973,2]
[392597435,1761720632945,-166.66,0.0002698,2]
[392597436,1761720632955,-116002.69775198,0.0002698,2]
[392597437,1761720632967,-10867.75688464,0.0002698,2]
[392597440,1761720637963,-1263.97803,0.0002698,2]
[392597441,1761720638205,-8589.36454677,0.0002698,2]
[392597468,1761720640036,-1979.51532671,0.0002698,2]
[392597469,1761720640082,-331.23186116,0.0002698,2]
[392597470,1761720640113,-33173.871515,0.0002698,2]
[392597471,1761720640396,-453.46497259,0.0002698,2]
[392597481,1761721402522,511.988543,0.0003048,120]
[392597523,1761721831947,-201.93,0.00013699,2]
[392597524,1761721831957,-358.4179452,0.00015068,2]
[392597525,1761721831966,-102.71754137,0.00020187,2]
[392597527,1761721831992,-99.21245863,0.00020187,2]
[392597528,1761721832001,-176.74413978,0.000239,2]
[392597529,1761721832011,-152.0,0.00023904,3]
[392597530,1761721832020,-181.01185662,0.00024,2]
[392597531,1761721832032,-465.9953285,0.00024,2]
[392597532,1761721832047,-3035.94463603,0.00024,2]
[392597533,1761721832057,-150.0,0.00024,2]
[392597534,1761721832066,-150.0,0.00024288,2]
[392597535,1761721832075,-150.0,0.00024288,2]
[392597536,1761721832085,-162.28,0.00024658,2]
[392597537,1761721832095,-166.62635586,0.00024785,2]
[392597538,1761721832104,-171.05881913,0.00025,30]
[392597539,1761721832114,-383.001778,0.0002526,2]
[392597540,1761721832124,-152.0,0.00025387,4]
[392597541,1761721832134,-176.74413976,0.0002539,2]
[392597542,1761721832144,-1000.0,0.00025753,2]
[392597543,1761721832154,-500.0,0.00025753,2]
[392597544,1761721832163,-500.0,0.00025753,2]
[392597545,1761721832173,-1000.0,0.0002586,2]
[392597546,1761721832183,-168.0,0.0002587,2]
[392597547,1761721832192,-509.34848999,0.00025971,4]
[392597548,1761721832201,-1998.71,0.00025971,2]
[392597549,1761721832211,-200.0,0.00026044,2]
[392597550,1761721832220,-168.0,0.000261,2]
[392597551,1761721832230,-353.08,0.00026521,2]
[392597552,1761721832240,-216.9840124,0.00026552,2]
[392597553,1761721832250,-201.93,0.00026676,2]
[392597554,1761721832259,-216.9840124,0.00026678,2]
[392597555,1761721832268,-500.0,0.00026683,7]
[392597556,1761721832278,-6523.97998023,0.0002672,2]
[392597557,1761721832290,-4507.67457675,0.0002672,2]
[392597558,1761721832299,-500.0,0.00026756,7]
[392597559,1761721832308,-166.67,0.00026759,2]
[392597560,1761721832318,-1000.0,0.00026849,2]
[392597562,1761721832327,-93.11936533,0.00026867,7]
[392597563,1761721832346,-406.88063467,0.00026867,7]
[392597564,1761721832355,-152.0,0.0002687,5]
[392597565,1761721832364,-176.74413976,0.0002688,2]
[392597566,1761721832373,-433.42278227,0.0002689,2]
[392597567,1761721832384,-166.9138389,0.0002689,2]
[392597568,1761721832393,-1000.0,0.000269,2]
[392597569,1761721832403,-1000.0,0.000269,2]
[392597570,1761721832412,-156.742236,0.000269,2]
[392597571,1761721832421,-890.74265767,0.000269,2]
[392597572,1761721832433,-685.08971641,0.000269,2]
[392597576,1761721832465,-3373.35209851,0.000269,2]
[392597578,1761721832477,-50.81552741,0.000269,2]
[392597579,1761721832486,-151.0,0.00026924,7]
[392597580,1761721832495,-1789.48291543,0.00026927,2]
[392597581,1761721832514,-408.2574532,0.00026927,2]
[392597582,1761721832525,-323.3292545,0.00026927,2]
[392597583,1761721832536,-295.99999997,0.00026927,2]
[392597584,1761721832547,-1000.0,0.00026927,2]
[392597587,1761721838044,-9155.56625052,0.00026927,2]
[392597588,1761721838055,-162.6258439,0.0002693,2]
[392597589,1761721838065,-14173.5207295,0.0002693,2]
[392597590,1761721838075,-1494.0,0.00026959,2]
[392597591,1761721838085,-281.279,0.00026966,15]
[392597592,1761721838095,-256.95961756,0.00026973,2]
[392597593,1761721838105,-188.78699959,0.00026979,2]
[392597594,1761721838115,-200.0,0.0002698,2]
[392597595,1761721838125,-151.0,0.0002698,2]
[392597596,1761721838135,-167.58598,0.0002698,2]
[392597597,1761721838144,-26538.00137893,0.0002698,2]
[392597598,1761721838156,-34049.97031995,0.0002698,2]
[392597599,1761721838180,-855.144,0.0002698,2]
[392597600,1761721838191,-5283.41539008,0.0002698,2]
[392597601,1761721838204,-596.99626034,0.0002698,2]
[392597623,1761721840751,-5265.22784199,0.0002698,2]
[392597627,1761721843297,-206.06448491,0.0002688,2]
[392597628,1761721843306,-18097.37389191,0.0002698,2]
[392597636,1761721846117,-470.2073755,0.0002698,2]
[392597637,1761721846234,-3827.88420095,0.0002698,2]
[392597638,1761721863942,287.40876646,0.00031507,120]
[392597639,1761722642713,202.95013142,0.00031,120]
[392597645,1761722839606,-100000.0,0.00015,2]
[392597646,1761722840391,-41964.63279071,0.00015,2]
[392597647,1761722840414,-508.2531169,0.0001519,2]
[392597657,1761722873918,57527.11409239,0.00015,2]
[392597659,1761722894890,-97081.6121223,0.00015,2]
[392597664,1761722919579,1282.19539311,0.0001,2]
[392597709,1761723014669,362.34,0.00012313,2]
[392597710,1761723014867,362.34,0.00012961,2]
[392597711,1761723015066,362.34,0.00013609,2]
[392597712,1761723015276,362.34,0.00014257,2]
[392597713,1761723015480,186.83248459,0.00014905,2]
[392597714,1761723015645,175.50751541,0.00014905,2]
[392597727,1761723032495,-362.34,0.00015553,2]
[392597728,1761723032505,-362.34,0.00016201,2]
[392597729,1761723032514,-362.34,0.00016849,2]
[392597730,1761723032523,-362.34,0.00017497,2]
[392597731,1761723032533,-1703.345525,0.0001781,2]
[392597732,1761723032542,-258.58027683,0.000179,2]
[392597733,1761723032551,-150.0,0.000179,2]
[392597734,1761723032560,-1201.72788393,0.00018,2]
[392597735,1761723032579,-716.26569835,0.00018,2]
[392597736,1761723032590,-2388.43198722,0.00018,2]
[392597737,1761723032601,-1006.71433122,0.00018,2]
[392597738,1761723032627,-4564.16748859,0.00018,2]
[392597797,1761723038186,-207.74186163,0.00018,2]
[392597798,1761723038196,-742.87194678,0.000181,2]
[392597799,1761723038205,-109.30870134,0.0001813,2]
[392597800,1761723038217,-397.8513981,0.0001813,2]
[392597801,1761723038226,-362.34,0.00018145,2]
[392597802,1761723038236,-362.34,0.00018793,2]
[392597803,1761723038246,-362.34,0.00019441,2]
[392597804,1761723038256,-504.14987303,0.0002,2]
[392597805,1761723038267,-699.49130958,0.0002,2]
[392597806,1761723038279,-6223.07683396,0.0002,2]
[392597807,1761723038289,-362.34,0.0002009,2]
[392597808,1761723038300,-362.34,0.00020738,2]
[392597809,1761723038310,-362.34,0.00021386,2]
[392597810,1761723038320,-362.34,0.00022034,2]
[392597811,1761723038330,-362.34,0.00022682,2]
[392597812,1761723038340,-11931.83520571,0.00023,2]
[392597816,1761723040801,-2276.2434,0.00023,2]
[392597823,1761723043380,-60.707218,0.00023,2]
[392597824,1761723043391,-14283.92846051,0.00023,2]
[392597825,1761723043406,-362.34,0.0002333,2]
[392597826,1761723043415,-362.34,0.00023978,2]
[392597827,1761723043424,-300.0,0.00024,5]
[392597828,1761723043434,-150.0,0.00024288,2]
[392597829,1761723043445,-362.34,0.00024626,2]
[392597830,1761723043454,-383.87259268,0.00024685,2]
[392597831,1761723043464,-284.25,0.00024785,2]
[392597832,1761723043473,-1000.0,0.00024937,2]
[392597833,1761723043483,-383.87259266,0.00024975,2]
[392597834,1761723043492,-500.0,0.00025,5]
[392597835,1761723043501,-308.57666,0.00025,3]
[392597836,1761723043511,-383.87259266,0.00025265,2]
[392597837,1761723043520,-161.8,0.00025382,2]
[392597838,1761723043530,-999.0,0.00025415,3]
[392597839,1761723043540,-170.43884506,0.00025427,2]
[392597840,1761723043550,-351.76,0.00025524,2]
[392597841,1761723043559,-383.87259266,0.00025556,2]
[392597842,1761723043568,-351.76,0.00025661,2]
[392597843,1761723043577,-800.0,0.00025753,2]
[392597844,1761723043586,-500.0,0.00025753,2]
[392597845,1761723043595,-500.0,0.00025753,2]
[392597846,1761723043604,-243.53715851,0.00025773,2]
[392597847,1761723043614,-618.12085243,0.00025773,2]
[392597848,1761723043623,-500.0,0.00025773,2]
[392597849,1761723043633,-574.76590107,0.00025773,2]
[392597850,1761723043643,-955.59209253,0.0002579,2]
[392597863,1761723046283,-464.13888931,0.0002579,2]
[392597864,1761723046301,-55831.90158606,0.0002579,2]
[392597865,1761723046311,-500.0,0.00025799,2]
[392597866,1761723046320,-39822.13521996,0.000258,2]
[392597867,1761723046395,-301.60828,0.000258,2]
[392598529,1761723380520,-967.0494989,0.00019549,2]
[392598533,1761723510716,150.0,0.00025036,120]
[392598540,1761723610663,456.0169506,0.0003,120]
[392598548,1761723741395,300.0,0.000315,120]
[392598584,1761724206901,176.0,0.0002,3]
[392598585,1761724207124,172.0,0.0002,3]
[392598586,1761724207346,172.0,0.0002,3]
[392598587,1761724207912,172.0,0.0002,3]
[392598588,1761724208887,172.0,0.0002,3]
[392598594,1761724232467,-967.0494989,0.00021749,2]
[392598595,1761724232477,-1932.9505011,0.000233,2]
[392598596,1761724232489,-2415.19362123,0.000233,2]
[392598597,1761724232498,-1000.0,0.000236,2]
[392598598,1761724232508,-291.88825636,0.00023949,2]
[392598599,1761724232531,-675.16124254,0.00023949,2]
[392598600,1761724232540,-150.0,0.00024288,2]
[392598601,1761724232549,-166.66,0.00024438,30]
[392598602,1761724232559,-200.0,0.00024619,2]
[392598603,1761724232568,-926.26695193,0.00024713,2]
[392598604,1761724232577,-500.0,0.00024723,2]
[392598605,1761724232586,-260.47119166,0.00024723,2]
[392598606,1761724232595,-7745.38,0.00024724,2]
[392598607,1761724232604,-14930.4824796,0.00024724,2]
[392598608,1761724232613,-7346.3154354,0.00024724,2]
[392598609,1761724232623,-313.6694385,0.00024724,2]
[392598610,1761724232632,-506.92502696,0.00024724,2]
[392598611,1761724232641,-408.86687224,0.00024753,2]